Workbook

Sheet 가이드
G1: 가이드 | H1: 수입
B2: 개인 현금 흐름
B3: 이 통합 문서에는 연간, 월별, 일일 현금 흐름 워크시트가 있습니다. 필요한 현금 흐름 유형만 선택하여 사용하거나 모든 유형을 다 사용하여 개인 현금 흐름을 정리하세요.
B5: 연간 현금 흐름 | D5: 월별 현금 흐름 | F5: 일일 현금 흐름
B6: 여러 범주별로 연간 현금 흐름 금액을 입력합니다. 월별 요약과 비교 데이터, 연간/월별 요약 수치를 확인할 수 있습니다. | D6: 매월 발생하는 월별 현금 흐름을 입력하거나 나머지 월의 현금 흐름을 추정하여 해당 연도의 각 월에 대한 예상 현금 흐름을 확인합니다. | F6: 매일 발생하는 현금 흐름 추정 금액을 입력하고 월별/연간 추정 합계를 확인합니다. 이 데이터를 사용하여 한 달 또는 1년 동안의 일일 소비 습관을 미리 살펴볼 수 있습니다.

Sheet 연간 현금 흐름
B1: 개인 현금 흐름 | G1: 가이드 | H1: 연간 현금 흐름 | J1: 월별 현금 흐름
B2: 현재까지의 총 현금 흐름: | D2: =현재까지의연간현금흐름 -> ₩39,750.00 | G2: 연간 추정값입니다. 월별 추정값으로 연간 금액을 확인하려면 이 워크시트를 사용하세요. 다른 워크시트를 사용하여 일일 항목을 추가하세요.
B3: 수입 요약 | F3: 경비 요약 | J3: 재량 지출 요약 | N3: 저축 요약
B4: 연간 합계: | C4: =수입!C10 -> ₩125,000.00 | F4: 연간 합계: | G4: =경비[[#Totals],[연간 ]] -> ₩49,000.00 | J4: 연간 합계: | K4: =재량지출[[#Totals],[연간 ]] -> ₩13,250.00 | N4: 연간 합계: | O4: =저축[[#Totals],[연간 ]] -> ₩23,000.00
B5: 이 셀에는 각종 소득원에서 발생하는 수입을 보여주는 원형 차트가 표시됩니다. | F5: 이 셀에는 지출한 경비를 보여주는 원형 차트가 표시됩니다. | J5: 이 셀에는 재량 지출 경비를 보여주는 원형 차트가 표시됩니다. | N5: 이 셀에는 저축 및 투자를 보여주는 원형 차트가 표시됩니다.
B6: 월별 합계: | C6: =수입!D10 -> ₩10,416.67 | F6: 월별 합계: | G6: =경비[[#Totals],[월별 ]] -> ₩4,083.33 | J6: 월별 합계: | K6: =재량지출[[#Totals],[월별 ]] -> ₩1,104.17 | N6: 월별 합계: | O6: =저축!D9 -> ₩1,916.67

Sheet 월별 현금 흐름
B1: 개인 현금 흐름 | H1: 가이드 | I1: 연간 현금 흐름 | J1: 월별 현금 흐름 | K1: 일일 요약
B2: 월별 현금 흐름 합계: | D2: =현재까지의월별현금흐름 -> ₩18,380.00 | F2: 참고: 일일 항목의 경우, 월별 금액을 추정하여 이 금액을 해당 월의 열에 입력하세요.
B3: 종류 | C3: 설명 | D3: 1월 | E3: 2월 | F3: 3월 | G3: 4월 | H3: 5월 | I3: 6월 | J3: 7월 | K3: 8월 | L3: 9월 | M3: 10월 | N3: 11월 | O3: 12월 | P3: 합계
B4: 수입 | C4: 급여 | D4: ₩7,500.00 | E4: ₩7,500.00 | F4: ₩7,500.00 | G4: ₩7,500.00 | H4: ₩7,500.00 | I4: ₩7,500.00 | P4: =SUM(월별[[#This Row],[1월]:[12월]]) -> ₩45,000.00
B5: 수입 | C5: 커미션/보너스 | D5: ₩400.00 | E5: ₩400.00 | F5: ₩500.00 | G5: ₩200.00 | H5: ₩0.00 | I5: ₩600.00 | P5: =SUM(월별[[#This Row],[1월]:[12월]]) -> ₩2,100.00
B6: 수입 | C6: 기타 1 | D6: ₩2,500.00 | E6: ₩2,500.00 | F6: ₩2,500.00 | G6: ₩2,500.00 | H6: ₩2,500.00 | I6: ₩2,500.00 | P6: =SUM(월별[[#This Row],[1월]:[12월]]) -> ₩15,000.00
B7: 수입 | C7: 기타 2 | D7: ₩0.00 | E7: ₩0.00 | F7: ₩0.00 | G7: ₩0.00 | H7: ₩0.00 | I7: ₩0.00 | P7: =SUM(월별[[#This Row],[1월]:[12월]]) -> ₩0.00
B8: 수입 | C8: 기타 3 | D8: ₩0.00 | E8: ₩0.00 | F8: ₩0.00 | G8: ₩0.00 | H8: ₩0.00 | I8: ₩0.00 | P8: =SUM(월별[[#This Row],[1월]:[12월]]) -> ₩0.00
B9: 수입 | C9: 기타 4 | D9: ₩0.00 | E9: ₩0.00 | F9: ₩0.00 | G9: ₩0.00 | H9: ₩0.00 | I9: ₩0.00 | P9: =SUM(월별[[#This Row],[1월]:[12월]]) -> ₩0.00
B10: 경비 | C10: 연방/사회보장보험/건강보험 | D10: ₩1,250.00 | E10: ₩1,250.00 | F10: ₩1,250.00 | G10: ₩1,250.00 | H10: ₩1,250.00 | I10: ₩1,250.00 | P10: =SUM(월별[[#This Row],[1월]:[12월]]) -> ₩7,500.00
B11: 경비 | C11: 주 소득세 | D11: ₩208.33 | E11: ₩208.33 | F11: ₩208.33 | G11: ₩208.33 | H11: ₩208.33 | I11: ₩208.33 | P11: =SUM(월별[[#This Row],[1월]:[12월]]) -> ₩1,250.00
B12: 경비 | C12: 자동차세/수수료 | D12: ₩16.67 | E12: ₩16.67 | F12: ₩16.67 | G12: ₩16.67 | H12: ₩16.67 | I12: ₩16.67 | P12: =SUM(월별[[#This Row],[1월]:[12월]]) -> ₩100.00
B13: 경비 | C13: 자동차 납부금 | D13: ₩333.33 | E13: ₩333.33 | F13: ₩333.33 | G13: ₩333.33 | H13: ₩333.33 | I13: ₩333.33 | P13: =SUM(월별[[#This Row],[1월]:[12월]]) -> ₩2,000.00
B14: 경비 | C14: 주택담보대출/임대료 | D14: ₩1,250.00 | E14: ₩1,250.00 | F14: ₩1,250.00 | G14: ₩1,250.00 | H14: ₩1,250.00 | I14: ₩1,250.00 | P14: =SUM(월별[[#This Row],[1월]:[12월]]) -> ₩7,500.00
B15: 경비 | C15: 보험료 | D15: ₩25.00 | E15: ₩25.00 | F15: ₩25.00 | G15: ₩25.00 | H15: ₩25.00 | I15: ₩25.00 | P15: =SUM(월별[[#This Row],[1월]:[12월]]) -> ₩150.00
B16: 경비 | C16: 전기 | D16: ₩100.00 | E16: ₩100.00 | F16: ₩100.00 | G16: ₩100.00 | H16: ₩100.00 | I16: ₩100.00 | P16: =SUM(월별[[#This Row],[1월]:[12월]]) -> ₩600.00
B17: 경비 | C17: 가스 | D17: ₩50.00 | E17: ₩50.00 | F17: ₩50.00 | G17: ₩50.00 | H17: ₩50.00 | I17: ₩50.00 | P17: =SUM(월별[[#This Row],[1월]:[12월]]) -> ₩300.00
B18: 경비 | C18: 수도 | D18: ₩50.00 | E18: ₩50.00 | F18: ₩50.00 | G18: ₩50.00 | H18: ₩50.00 | I18: ₩50.00 | P18: =SUM(월별[[#This Row],[1월]:[12월]]) -> ₩300.00
B19: 경비 | C19: 하수도 | D19: ₩25.00 | E19: ₩25.00 | F19: ₩25.00 | G19: ₩25.00 | H19: ₩25.00 | I19: ₩25.00 | P19: =SUM(월별[[#This Row],[1월]:[12월]]) -> ₩150.00
B20: 경비 | C20: 쓰레기처리 | D20: ₩12.50 | E20: ₩12.50 | F20: ₩12.50 | G20: ₩12.50 | H20: ₩12.50 | I20: ₩12.50 | P20: =SUM(월별[[#This Row],[1월]:[12월]]) -> ₩75.00
B21: 경비 | C21: 전화 번호 | D21: ₩50.00 | E21: ₩50.00 | F21: ₩50.00 | G21: ₩50.00 | H21: ₩50.00 | I21: ₩50.00 | P21: =SUM(월별[[#This Row],[1월]:[12월]]) -> ₩300.00
B22: 경비 | C22: 인터넷 | D22: ₩50.00 | E22: ₩50.00 | F22: ₩50.00 | G22: ₩50.00 | H22: ₩50.00 | I22: ₩50.00 | P22: =SUM(월별[[#This Row],[1월]:[12월]]) -> ₩300.00
B23: 경비 | C23: 생명/장애 보험 | D23: ₩125.00 | E23: ₩125.00 | F23: ₩125.00 | G23: ₩125.00 | H23: ₩125.00 | I23: ₩125.00 | P23: =SUM(월별[[#This Row],[1월]:[12월]]) -> ₩750.00
B24: 경비 | C24: 음식 | D24: ₩400.00 | E24: ₩500.00 | F24: ₩450.00 | G24: ₩400.00 | H24: ₩450.00 | I24: ₩425.00 | P24: =SUM(월별[[#This Row],[1월]:[12월]]) -> ₩2,625.00
B25: 경비 | C25: 의류 | D25: ₩50.00 | E25: ₩75.00 | F25: ₩100.00 | G25: ₩75.00 | H25: ₩125.00 | I25: ₩75.00 | P25: =SUM(월별[[#This Row],[1월]:[12월]]) -> ₩500.00
B26: 경비 | C26: 의료비/치과치료비/처방전 | D26: ₩50.00 | E26: ₩10.00 | F26: ₩25.00 | G26: ₩25.00 | H26: ₩20.00 | I26: ₩70.00 | P26: =SUM(월별[[#This Row],[1월]:[12월]]) -> ₩200.00
B27: 경비 | C27: 버스 | D27: ₩30.00 | E27: ₩30.00 | F27: ₩30.00 | G27: ₩20.00 | H27: ₩30.00 | I27: ₩30.00 | P27: =SUM(월별[[#This Row],[1월]:[12월]]) -> ₩170.00
B28: 경비 | C28: 기타 2 | D28: ₩0.00 | E28: ₩0.00 | F28: ₩0.00 | G28: ₩0.00 | H28: ₩0.00 | I28: ₩0.00 | P28: =SUM(월별[[#This Row],[1월]:[12월]]) -> ₩0.00
B29: 경비 | C29: 기타 3 | D29: ₩0.00 | E29: ₩0.00 | F29: ₩0.00 | G29: ₩0.00 | H29: ₩0.00 | I29: ₩0.00 | P29: =SUM(월별[[#This Row],[1월]:[12월]]) -> ₩0.00
B30: 경비 | C30: 기타 4 | D30: ₩0.00 | E30: ₩0.00 | F30: ₩0.00 | G30: ₩0.00 | H30: ₩0.00 | I30: ₩0.00 | P30: =SUM(월별[[#This Row],[1월]:[12월]]) -> ₩0.00
B31: 재량 지출 | C31: 외식 | D31: ₩50.00 | E31: ₩150.00 | F31: ₩100.00 | G31: ₩50.00 | H31: ₩150.00 | I31: ₩100.00 | P31: =SUM(월별[[#This Row],[1월]:[12월]]) -> ₩600.00
B32: 재량 지출 | C32: 선물 | D32: ₩25.00 | E32: ₩75.00 | F32: ₩50.00 | G32: ₩25.00 | H32: ₩75.00 | I32: ₩50.00 | P32: =SUM(월별[[#This Row],[1월]:[12월]]) -> ₩300.00
B33: 재량 지출 | C33: 여행 | D33: ₩0.00 | E33: ₩0.00 | F33: ₩1,000.00 | G33: ₩0.00 | H33: ₩0.00 | I33: ₩1,000.00 | P33: =SUM(월별[[#This Row],[1월]:[12월]]) -> ₩2,000.00
B34: 재량 지출 | C34: 여가비 | D34: ₩50.00 | E34: ₩150.00 | F34: ₩100.00 | G34: ₩50.00 | H34: ₩150.00 | I34: ₩100.00 | P34: =SUM(월별[[#This Row],[1월]:[12월]]) -> ₩600.00
B35: 재량 지출 | C35: 개인 관리 | D35: ₩15.00 | E35: ₩25.00 | F35: ₩35.00 | G35: ₩15.00 | H35: ₩25.00 | I35: ₩35.00 | P35: =SUM(월별[[#This Row],[1월]:[12월]]) -> ₩150.00
B36: 재량 지출 | C36: 쇼핑 | D36: ₩100.00 | E36: ₩200.00 | F36: ₩150.00 | G36: ₩175.00 | H36: ₩150.00 | I36: ₩175.00 | P36: =SUM(월별[[#This Row],[1월]:[12월]]) -> ₩950.00
B37: 재량 지출 | C37: 기부금 | D37: ₩50.00 | E37: ₩50.00 | F37: ₩50.00 | G37: ₩50.00 | H37: ₩50.00 | I37: ₩50.00 | P37: =SUM(월별[[#This Row],[1월]:[12월]]) -> ₩300.00
B38: 재량 지출 | C38: 클럽/멤버십 | D38: ₩25.00 | E38: ₩25.00 | F38: ₩25.00 | G38: ₩25.00 | H38: ₩25.00 | I38: ₩25.00 | P38: =SUM(월별[[#This Row],[1월]:[12월]]) -> ₩150.00
B39: 재량 지출 | C39: 주택 개조 | D39: ₩400.00 | E39: ₩400.00 | F39: ₩400.00 | G39: ₩400.00 | H39: ₩400.00 | I39: ₩400.00 | P39: =SUM(월별[[#This Row],[1월]:[12월]]) -> ₩2,400.00
B40: 재량 지출 | C40: 기타 1 | D40: ₩0.00 | E40: ₩0.00 | F40: ₩0.00 | G40: ₩0.00 | H40: ₩0.00 | I40: ₩0.00 | P40: =SUM(월별[[#This Row],[1월]:[12월]]) -> ₩0.00
B41: 재량 지출 | C41: 기타 2 | D41: ₩0.00 | E41: ₩0.00 | F41: ₩0.00 | G41: ₩0.00 | H41: ₩0.00 | I41: ₩0.00 | P41: =SUM(월별[[#This Row],[1월]:[12월]]) -> ₩0.00
B42: 저축 | C42: 현금 준비금 | D42: ₩416.67 | E42: ₩416.67 | F42: ₩416.67 | G42: ₩416.67 | H42: ₩416.67 | I42: ₩416.67 | P42: =SUM(월별[[#This Row],[1월]:[12월]]) -> ₩2,500.00
B43: 저축 | C43: 퇴직연금/기타 | D43: ₩1,000.00 | E43: ₩1,000.00 | F43: ₩1,000.00 | G43: ₩1,000.00 | H43: ₩1,000.00 | I43: ₩1,000.00 | P43: =SUM(월별[[#This Row],[1월]:[12월]]) -> ₩6,000.00
B44: 저축 | C44: 저축/투자 계정 | D44: ₩500.00 | E44: ₩500.00 | F44: ₩500.00 | G44: ₩500.00 | H44: ₩500.00 | I44: ₩500.00 | P44: =SUM(월별[[#This Row],[1월]:[12월]]) -> ₩3,000.00
B45: 저축 | C45: 기타 1 | D45: ₩0.00 | E45: ₩0.00 | F45: ₩0.00 | G45: ₩0.00 | H45: ₩0.00 | I45: ₩0.00 | P45: =SUM(월별[[#This Row],[1월]:[12월]]) -> ₩0.00
B46: 저축 | C46: 기타 2 | D46: ₩0.00 | E46: ₩0.00 | F46: ₩0.00 | G46: ₩0.00 | H46: ₩0.00 | I46: ₩0.00 | P46: =SUM(월별[[#This Row],[1월]:[12월]]) -> ₩0.00
B47: 요약 | D47: =SUMIF(월별[종류],"수입",월별[1월])-SUMIF(월별[종류],"<>수입",월별[1월]) -> ₩3,692.50 | E47: =SUMIF(월별[종류],"수입",월별[2월])-SUMIF(월별[종류],"<>수입",월별[2월]) -> ₩3,247.50 | F47: =SUMIF(월별[종류],"수입",월별[3월])-SUMIF(월별[종류],"<>수입",월별[3월]) -> ₩2,522.50 | G47: =SUMIF(월별[종류],"수입",월별[4월])-SUMIF(월별[종류],"<>수입",월별[4월]) -> ₩3,427.50 | H47: =SUMIF(월별[종류],"수입",월별[5월])-SUMIF(월별[종류],"<>수입",월별[5월]) -> ₩2,887.50 | I47: =SUMIF(월별[종류],"수입",월별[6월])-SUMIF(월별[종류],"<>수입",월별[6월]) -> ₩2,602.50 | J47: =SUMIF(월별[종류],"수입",월별[7월])-SUMIF(월별[종류],"<>수입",월별[7월]) -> ₩0.00 | K47: =SUMIF(월별[종류],"수입",월별[8월])-SUMIF(월별[종류],"<>수입",월별[8월]) -> ₩0.00 | L47: =SUMIF(월별[종류],"수입",월별[9월])-SUMIF(월별[종류],"<>수입",월별[9월]) -> ₩0.00 | M47: =SUMIF(월별[종류],"수입",월별[10월])-SUMIF(월별[종류],"<>수입",월별[10월]) -> ₩0.00 | N47: =SUMIF(월별[종류],"수입",월별[11월])-SUMIF(월별[종류],"<>수입",월별[11월]) -> ₩0.00 | O47: =SUMIF(월별[종류],"수입",월별[12월])-SUMIF(월별[종류],"<>수입",월별[12월]) -> ₩0.00 | P47: =SUMIF(월별[종류],"수입",월별[합계])-SUMIF(월별[종류],"<>수입",월별[합계]) -> ₩18,380.00

Sheet 일일 요약
B1: 개인 현금 흐름 | F1: 가이드 | G1: 월별 현금 흐름 | H1: 일일 요약 | I1: 수입
B2: 사용 가능 현금 합계: | D2: =일일현금흐름 -> ₩577.84 | F2: 참고: 표에 일일 항목을 추가하려면 월별 금액을 추정하여 이 금액을 해당 월의 열에 입력하세요.
B3: 일일 요약
B4: 합계 | C4: 일별 | D4: 월별 | E4: 연간
B5: 수입 | C5: =SUMIF(일별[종류],$B5,일별[일별]) -> ₩342.47 | D5: =SUMIF(일별[종류],$B5,일별[월별]) -> ₩10,416.80 | E5: =SUMIF(일별[종류],$B5,일별[연간]) -> ₩125,001.55
B6: 경비 | C6: =SUMIF(일별[종류],$B6,일별[일별]) -> ₩136.06 | D6: =SUMIF(일별[종류],$B6,일별[월별]) -> ₩4,138.49 | E6: =SUMIF(일별[종류],$B6,일별[연간]) -> ₩49,661.90
B7: 재량 지출 | C7: =SUMIF(일별[종류],$B7,일별[일별]) -> ₩36.29 | D7: =SUMIF(일별[종류],$B7,일별[월별]) -> ₩1,103.82 | E7: =SUMIF(일별[종류],$B7,일별[연간]) -> ₩13,245.85
B8: 저축 | C8: =SUMIF(일별[종류],$B8,일별[일별]) -> ₩63.02 | D8: =SUMIF(일별[종류],$B8,일별[월별]) -> ₩1,916.86 | E8: =SUMIF(일별[종류],$B8,일별[연간]) -> ₩23,002.30
B9: 종류 | C9: 설명 | D9: 일별 | E9: 월별 | F9: 연간
B10: 수입 | C10: 급여 | D10: ₩246.58 | E10: =일별[[#This Row],[연간]]/12 -> ₩7,500.14 | F10: =일별[[#This Row],[일별]]*365 -> ₩90,001.70
B11: 수입 | C11: 커미션/보너스 | D11: ₩13.70 | E11: =일별[[#This Row],[연간]]/12 -> ₩416.71 | F11: =일별[[#This Row],[일별]]*365 -> ₩5,000.50
B12: 수입 | C12: 기타 1 | D12: ₩82.19 | E12: =일별[[#This Row],[연간]]/12 -> ₩2,499.95 | F12: =일별[[#This Row],[일별]]*365 -> ₩29,999.35
B13: 수입 | C13: 기타 2 | D13: ₩0.00 | E13: =일별[[#This Row],[연간]]/12 -> ₩0.00 | F13: =일별[[#This Row],[일별]]*365 -> ₩0.00
B14: 수입 | C14: 기타 3 | D14: ₩0.00 | E14: =일별[[#This Row],[연간]]/12 -> ₩0.00 | F14: =일별[[#This Row],[일별]]*365 -> ₩0.00
B15: 수입 | C15: 기타 4 | D15: ₩0.00 | E15: =일별[[#This Row],[연간]]/12 -> ₩0.00 | F15: =일별[[#This Row],[일별]]*365 -> ₩0.00
B16: 경비 | C16: 연방/사회보장보험/건강보험 | D16: ₩41.10 | E16: =일별[[#This Row],[연간]]/12 -> ₩1,250.13 | F16: =일별[[#This Row],[일별]]*365 -> ₩15,001.50
B17: 경비 | C17: 주 소득세 | D17: ₩6.85 | E17: =일별[[#This Row],[연간]]/12 -> ₩208.35 | F17: =일별[[#This Row],[일별]]*365 -> ₩2,500.25
B18: 경비 | C18: 자동차세/수수료 | D18: ₩0.55 | E18: =일별[[#This Row],[연간]]/12 -> ₩16.73 | F18: =일별[[#This Row],[일별]]*365 -> ₩200.75
B19: 경비 | C19: 자동차 납부금 | D19: ₩10.96 | E19: =일별[[#This Row],[연간]]/12 -> ₩333.37 | F19: =일별[[#This Row],[일별]]*365 -> ₩4,000.40
B20: 경비 | C20: 주택담보대출/임대료 | D20: ₩41.10 | E20: =일별[[#This Row],[연간]]/12 -> ₩1,250.13 | F20: =일별[[#This Row],[일별]]*365 -> ₩15,001.50
B21: 경비 | C21: 보험료 | D21: ₩0.68 | E21: =일별[[#This Row],[연간]]/12 -> ₩20.68 | F21: =일별[[#This Row],[일별]]*365 -> ₩248.20
B22: 경비 | C22: 전기 | D22: ₩3.29 | E22: =일별[[#This Row],[연간]]/12 -> ₩100.07 | F22: =일별[[#This Row],[일별]]*365 -> ₩1,200.85
B23: 경비 | C23: 가스 | D23: ₩1.64 | E23: =일별[[#This Row],[연간]]/12 -> ₩49.88 | F23: =일별[[#This Row],[일별]]*365 -> ₩598.60
B24: 경비 | C24: 수도 | D24: ₩1.64 | E24: =일별[[#This Row],[연간]]/12 -> ₩49.88 | F24: =일별[[#This Row],[일별]]*365 -> ₩598.60
B25: 경비 | C25: 하수도 | D25: ₩0.82 | E25: =일별[[#This Row],[연간]]/12 -> ₩24.94 | F25: =일별[[#This Row],[일별]]*365 -> ₩299.30
B26: 경비 | C26: 쓰레기처리 | D26: ₩0.41 | E26: =일별[[#This Row],[연간]]/12 -> ₩12.47 | F26: =일별[[#This Row],[일별]]*365 -> ₩149.65
B27: 경비 | C27: 전화 번호 | D27: ₩1.64 | E27: =일별[[#This Row],[연간]]/12 -> ₩49.88 | F27: =일별[[#This Row],[일별]]*365 -> ₩598.60
B28: 경비 | C28: 인터넷 | D28: ₩1.64 | E28: =일별[[#This Row],[연간]]/12 -> ₩49.88 | F28: =일별[[#This Row],[일별]]*365 -> ₩598.60
B29: 경비 | C29: 생명/장애 보험 | D29: ₩4.11 | E29: =일별[[#This Row],[연간]]/12 -> ₩125.01 | F29: =일별[[#This Row],[일별]]*365 -> ₩1,500.15
B30: 경비 | C30: 음식 | D30: ₩13.70 | E30: =일별[[#This Row],[연간]]/12 -> ₩416.71 | F30: =일별[[#This Row],[일별]]*365 -> ₩5,000.50
B31: 경비 | C31: 의류 | D31: ₩3.29 | E31: =일별[[#This Row],[연간]]/12 -> ₩100.07 | F31: =일별[[#This Row],[일별]]*365 -> ₩1,200.85
B32: 경비 | C32: 의료비/치과치료비/처방전 | D32: ₩1.64 | E32: =일별[[#This Row],[연간]]/12 -> ₩49.88 | F32: =일별[[#This Row],[일별]]*365 -> ₩598.60
B33: 경비 | C33: 버스 | D33: ₩1.00 | E33: =일별[[#This Row],[연간]]/12 -> ₩30.42 | F33: =일별[[#This Row],[일별]]*365 -> ₩365.00
B34: 경비 | C34: 기타 2 | D34: ₩0.00 | E34: =일별[[#This Row],[연간]]/12 -> ₩0.00 | F34: =일별[[#This Row],[일별]]*365 -> ₩0.00
B35: 경비 | C35: 기타 3 | D35: ₩0.00 | E35: =일별[[#This Row],[연간]]/12 -> ₩0.00 | F35: =일별[[#This Row],[일별]]*365 -> ₩0.00
B36: 경비 | C36: 기타 4 | D36: ₩0.00 | E36: =일별[[#This Row],[연간]]/12 -> ₩0.00 | F36: =일별[[#This Row],[일별]]*365 -> ₩0.00
B37: 재량 지출 | C37: 외식 | D37: ₩3.29 | E37: =일별[[#This Row],[연간]]/12 -> ₩100.07 | F37: =일별[[#This Row],[일별]]*365 -> ₩1,200.85
B38: 재량 지출 | C38: 선물 | D38: ₩1.64 | E38: =일별[[#This Row],[연간]]/12 -> ₩49.88 | F38: =일별[[#This Row],[일별]]*365 -> ₩598.60
B39: 재량 지출 | C39: 여행 | D39: ₩6.16 | E39: =일별[[#This Row],[연간]]/12 -> ₩187.37 | F39: =일별[[#This Row],[일별]]*365 -> ₩2,248.40
B40: 재량 지출 | C40: 여가비 | D40: ₩3.29 | E40: =일별[[#This Row],[연간]]/12 -> ₩100.07 | F40: =일별[[#This Row],[일별]]*365 -> ₩1,200.85
B41: 재량 지출 | C41: 개인 관리 | D41: ₩0.82 | E41: =일별[[#This Row],[연간]]/12 -> ₩24.94 | F41: =일별[[#This Row],[일별]]*365 -> ₩299.30
B42: 재량 지출 | C42: 쇼핑 | D42: ₩5.48 | E42: =일별[[#This Row],[연간]]/12 -> ₩166.68 | F42: =일별[[#This Row],[일별]]*365 -> ₩2,000.20
B43: 재량 지출 | C43: 기부금 | D43: ₩1.64 | E43: =일별[[#This Row],[연간]]/12 -> ₩49.88 | F43: =일별[[#This Row],[일별]]*365 -> ₩598.60
B44: 재량 지출 | C44: 클럽/멤버십 | D44: ₩0.82 | E44: =일별[[#This Row],[연간]]/12 -> ₩24.94 | F44: =일별[[#This Row],[일별]]*365 -> ₩299.30
B45: 재량 지출 | C45: 주택 개조 | D45: ₩13.15 | E45: =일별[[#This Row],[연간]]/12 -> ₩399.98 | F45: =일별[[#This Row],[일별]]*365 -> ₩4,799.75
B46: 재량 지출 | C46: 기타 1 | D46: ₩0.00 | E46: =일별[[#This Row],[연간]]/12 -> ₩0.00 | F46: =일별[[#This Row],[일별]]*365 -> ₩0.00
B47: 재량 지출 | C47: 기타 2 | D47: ₩0.00 | E47: =일별[[#This Row],[연간]]/12 -> ₩0.00 | F47: =일별[[#This Row],[일별]]*365 -> ₩0.00
B48: 저축 | C48: 현금 준비금 | D48: ₩13.70 | E48: =일별[[#This Row],[연간]]/12 -> ₩416.71 | F48: =일별[[#This Row],[일별]]*365 -> ₩5,000.50
B49: 저축 | C49: 퇴직연금/기타 | D49: ₩32.88 | E49: =일별[[#This Row],[연간]]/12 -> ₩1,000.10 | F49: =일별[[#This Row],[일별]]*365 -> ₩12,001.20
B50: 저축 | C50: 저축/투자 계정 | D50: ₩16.44 | E50: =일별[[#This Row],[연간]]/12 -> ₩500.05 | F50: =일별[[#This Row],[일별]]*365 -> ₩6,000.60
B51: 저축 | C51: 기타 1 | D51: ₩0.00 | E51: =일별[[#This Row],[연간]]/12 -> ₩0.00 | F51: =일별[[#This Row],[일별]]*365 -> ₩0.00
B52: 저축 | C52: 기타 2 | D52: ₩0.00 | E52: =일별[[#This Row],[연간]]/12 -> ₩0.00 | F52: =일별[[#This Row],[일별]]*365 -> ₩0.00
B53: 요약 | D53: =SUMIF(일별[종류],"수입",일별[일별])-SUMIF(일별[종류],"<>수입",일별[일별]) -> ₩107.10 | E53: =SUMIF(일별[종류],"수입",일별[월별])-SUMIF(일별[종류],"<>수입",일별[월별]) -> ₩3,257.63 | F53: =SUMIF(일별[종류],"수입",일별[연간])-SUMIF(일별[종류],"<>수입",일별[연간]) -> ₩39,091.50

Sheet 수입
B1: 개인 현금 흐름 | F1: 가이드 | G1: 일일 요약 | H1: 수입 | I1: 경비
B2: 현재까지의 총 현금 흐름: | D2: =현재까지의연간현금흐름 -> ₩39,750.00 | F2: 연간 추정값입니다. 월별 추정값으로 연간 금액을 확인하려면 이 워크시트를 사용하세요. 표에 일일 항목을 추가하려면 연간 금액을 추정하여 이 금액을 연간 열에 입력하세요.
B3: 수입 | C3: 연간 | D3: 월별
B4: 급여 | C4: ₩90,000.00 | D4: =수입[[#This Row],[연간 ]]/12 -> ₩7,500.00
B5: 커미션/보너스 | C5: ₩5,000.00 | D5: =수입[[#This Row],[연간 ]]/12 -> ₩416.67
B6: 기타 1 | C6: ₩30,000.00 | D6: =수입[[#This Row],[연간 ]]/12 -> ₩2,500.00
B7: 기타 2 | D7: =수입[[#This Row],[연간 ]]/12 -> ₩0.00
B8: 기타 3 | D8: =수입[[#This Row],[연간 ]]/12 -> ₩0.00
B9: 기타 4 | D9: =수입[[#This Row],[연간 ]]/12 -> ₩0.00
B10: 요약 | C10: =SUBTOTAL(109,수입[[연간 ]]) -> ₩125,000.00 | D10: =SUBTOTAL(109,수입[[월별 ]]) -> ₩10,416.67

Sheet 경비
B1: 개인 현금 흐름 | F1: 가이드 | G1: 수입 | H1: 경비 | I1: 재량 지출
B2: 현재까지의 총 현금 흐름: | D2: =현재까지의연간현금흐름 -> ₩39,750.00 | F2: 연간 추정값입니다. 월별 추정값으로 연간 금액을 확인하려면 이 워크시트를 사용하세요. 표에 일일 항목을 추가하려면 연간 금액을 추정하여 이 금액을 연간 열에 입력하세요.
B3: 경비 | C3: 연간 | D3: 월별
B4: 연방/사회보장보험/건강보험 | C4: ₩15,000.00 | D4: =경비[[#This Row],[연간 ]]/12 -> ₩1,250.00
B5: 주 소득세 | C5: ₩2,500.00 | D5: =경비[[#This Row],[연간 ]]/12 -> ₩208.33
B6: 자동차세/수수료 | C6: ₩200.00 | D6: =경비[[#This Row],[연간 ]]/12 -> ₩16.67
B7: 자동차 납부금 | C7: ₩4,000.00 | D7: =경비[[#This Row],[연간 ]]/12 -> ₩333.33
B8: 주택담보대출/임대료 | C8: ₩15,000.00 | D8: =경비[[#This Row],[연간 ]]/12 -> ₩1,250.00
B9: 보험료 | C9: ₩250.00 | D9: =경비[[#This Row],[연간 ]]/12 -> ₩20.83
B10: 전기 | C10: ₩1,200.00 | D10: =경비[[#This Row],[연간 ]]/12 -> ₩100.00
B11: 가스 | C11: ₩600.00 | D11: =경비[[#This Row],[연간 ]]/12 -> ₩50.00
B12: 수도/하수도 | C12: ₩600.00 | D12: =경비[[#This Row],[연간 ]]/12 -> ₩50.00
B13: 쓰레기처리 | C13: ₩150.00 | D13: =경비[[#This Row],[연간 ]]/12 -> ₩12.50
B14: 전화 번호 | C14: ₩600.00 | D14: =경비[[#This Row],[연간 ]]/12 -> ₩50.00
B15: 인터넷 | C15: ₩600.00 | D15: =경비[[#This Row],[연간 ]]/12 -> ₩50.00
B16: 생명/장애 보험 | C16: ₩1,500.00 | D16: =경비[[#This Row],[연간 ]]/12 -> ₩125.00
B17: 음식 | C17: ₩5,000.00 | D17: =경비[[#This Row],[연간 ]]/12 -> ₩416.67
B18: 의류 | C18: ₩1,200.00 | D18: =경비[[#This Row],[연간 ]]/12 -> ₩100.00
B19: 의료비/치과치료비/처방전 | C19: ₩600.00 | D19: =경비[[#This Row],[연간 ]]/12 -> ₩50.00
B20: 기타 1 | D20: =경비[[#This Row],[연간 ]]/12 -> ₩0.00
B21: 기타 2 | D21: =경비[[#This Row],[연간 ]]/12 -> ₩0.00
B22: 요약 | C22: =SUBTOTAL(109,경비[[연간 ]]) -> ₩49,000.00 | D22: =SUBTOTAL(109,경비[[월별 ]]) -> ₩4,083.33

Sheet 재량 지출
B1: 개인 현금 흐름 | F1: 가이드 | G1: 경비 | H1: 재량 지출 | I1: 저축
B2: 현재까지의 총 현금 흐름: | D2: =현재까지의연간현금흐름 -> ₩39,750.00 | F2: 연간 추정값입니다. 월별 추정값으로 연간 금액을 확인하려면 이 워크시트를 사용하세요. 표에 일일 항목을 추가하려면 연간 금액을 추정하여 이 금액을 연간 열에 입력하세요.
B3: 재량 지출 경비 | C3: 연간 | D3: 월별
B4: 외식 | C4: ₩1,200.00 | D4: =재량지출[[#This Row],[연간 ]]/12 -> ₩100.00
B5: 선물 | C5: ₩600.00 | D5: =재량지출[[#This Row],[연간 ]]/12 -> ₩50.00
B6: 여행 | C6: ₩2,250.00 | D6: =재량지출[[#This Row],[연간 ]]/12 -> ₩187.50
B7: 여가비 | C7: ₩1,200.00 | D7: =재량지출[[#This Row],[연간 ]]/12 -> ₩100.00
B8: 개인 관리 | C8: ₩300.00 | D8: =재량지출[[#This Row],[연간 ]]/12 -> ₩25.00
B9: 쇼핑 | C9: ₩2,000.00 | D9: =재량지출[[#This Row],[연간 ]]/12 -> ₩166.67
B10: 기부금 | C10: ₩600.00 | D10: =재량지출[[#This Row],[연간 ]]/12 -> ₩50.00
B11: 클럽/멤버십 | C11: ₩300.00 | D11: =재량지출[[#This Row],[연간 ]]/12 -> ₩25.00
B12: 주택 개조 | C12: ₩4,800.00 | D12: =재량지출[[#This Row],[연간 ]]/12 -> ₩400.00
B13: 기타 1 | D13: =재량지출[[#This Row],[연간 ]]/12 -> ₩0.00
B14: 기타 2 | D14: =재량지출[[#This Row],[연간 ]]/12 -> ₩0.00
B15: 요약 | C15: =SUBTOTAL(109,재량지출[[연간 ]]) -> ₩13,250.00 | D15: =SUBTOTAL(109,재량지출[[월별 ]]) -> ₩1,104.17

Sheet 저축
B1: 개인 현금 흐름 | F1: 가이드 | G1: 재량 지출 | H1: 저축
B2: 현재까지의 총 현금 흐름: | D2: =현재까지의연간현금흐름 -> ₩39,750.00 | F2: 연간 추정값입니다. 월별 추정값으로 연간 금액을 확인하려면 이 워크시트를 사용하세요. 표에 일일 항목을 추가하려면 연간 금액을 추정하여 이 금액을 연간 열에 입력하세요.
B3: 저축 | C3: 연간 | D3: 월별
B4: 현금 준비금 | C4: ₩5,000.00 | D4: =저축[[#This Row],[연간 ]]/12 -> ₩416.67
B5: 퇴직연금/기타 | C5: ₩12,000.00 | D5: =저축[[#This Row],[연간 ]]/12 -> ₩1,000.00
B6: 저축/투자 | C6: ₩6,000.00 | D6: =저축[[#This Row],[연간 ]]/12 -> ₩500.00
B7: 기타 1 | D7: =저축[[#This Row],[연간 ]]/12 -> ₩0.00
B8: 기타 2 | D8: =저축[[#This Row],[연간 ]]/12 -> ₩0.00
B9: 요약 | C9: =SUBTOTAL(109,저축[[연간 ]]) -> ₩23,000.00 | D9: =SUBTOTAL(109,저축[[월별 ]]) -> ₩1,916.67
